bitfinex/quotes_SOLUSD_20250821
["timestamp","ask_amount","ask_price","bid_price","bid_amount"]
[1755796475076,0.06,180.78,180.77,50.75760234]
[1755796475611,0.06,180.78,180.77,24.75760234]
[1755796475917,0.06,180.78,180.77,50.75760234]
[1755796476083,0.06,180.78,180.77,24.75760234]
[1755796477806,0.06,180.78,180.77,26.97434434]
[1755796477976,0.06,180.78,180.77,52.97434434]
[1755796478176,0.06,180.78,180.77,26.97434434]
[1755796479720,0.06,180.78,180.77,18.51571099]
[1755796479883,0.06,180.78,180.77,44.51571099]
[1755796480091,0.06,180.78,180.77,39.87991715]
[1755796480420,0.06,180.78,180.77,30.63579384]
[1755796480598,0.06,180.78,180.77,4.63579384]
[1755796480796,0.75,180.78,180.74,46.507234]
[1755796481116,0.75,180.78,180.74,4.66579384]
[1755796481117,0.69,180.77,180.74,4.66579384]
[1755796481418,0.69,180.77,180.75,26.0]
[1755796481991,0.69,180.77,180.75,4.63579384]
[1755796482198,0.69,180.77,180.75,30.63579384]
[1755796483408,0.69,180.76,180.75,26.0]
[1755796483898,0.06,180.78,180.75,26.0]
[1755796484103,0.69,180.77,180.75,26.0]
[1755796484324,0.69,180.76,180.75,26.0]
[1755796485500,0.06,180.78,180.76,13.59559401]
[1755796485699,0.06,180.78,180.77,4.63579384]
[1755796485898,0.06,180.78,180.75,26.0]
[1755796486116,0.69,180.77,180.75,26.0]
[1755796486425,0.69,180.76,180.75,26.0]
[1755796486608,4.69579384,180.78,180.75,26.03]
[1755796486797,0.78,180.78,180.75,26.03]
[1755796486997,0.06,180.78,180.77,4.63579384]
[1755796487194,0.06,180.78,180.77,44.23138785]
[1755796487394,0.06,180.78,180.77,44.95138785]
[1755796487623,0.06,180.78,180.77,50.76760234]
[1755796488127,0.06,180.78,180.77,45.23571099]
[1755796488307,0.06,180.78,180.77,44.23138785]
[1755796490802,0.06,180.78,180.77,39.59559401]
[1755796490996,0.06,180.78,180.75,26.03]
[1755796490997,0.78,180.78,180.75,26.03]
[1755796491203,0.72,180.77,180.76,26.0]
[1755796491727,0.06,180.78,180.76,30.63579384]
[1755796493126,0.06,180.78,180.77,18.23138785]
[1755796493339,0.06,180.78,180.77,44.23138785]
[1755796493644,0.06,180.78,180.77,44.95138785]
[1755796494519,0.06,180.78,180.77,44.23138785]
[1755796495217,0.06,180.78,180.77,50.76760234]
[1755796495526,0.06,180.78,180.77,45.23571099]
[1755796496528,0.78,180.78,180.77,26.0]
[1755796496819,0.06,180.78,180.77,26.0]
[1755796497023,0.06,180.78,180.77,30.63579384]
[1755796497247,0.06,180.78,180.77,44.23138785]
[1755796499247,0.06,180.78,180.77,44.95138785]
[1755796499467,0.06,180.78,180.77,45.23571099]
[1755796499941,0.78,180.78,180.77,39.59559401]
[1755796500150,0.78,180.78,180.75,0.03]
[1755796500347,4.63579384,180.76,180.75,0.03]
[1755796500838,5.35579384,180.76,180.74,0.03]
[1755796501019,5.35579384,180.75,180.74,0.03]
[1755796501222,0.72,180.77,180.74,0.03]
[1755796501422,0.72,180.77,180.74,4.66579384]
[1755796501632,0.72,180.76,180.74,0.03]
[1755796501837,0.78,180.78,180.74,4.66579384]
[1755796502347,0.06,180.78,180.75,0.72]
[1755796502650,0.06,180.78,180.77,39.87991715]
[1755796502851,0.06,180.78,180.77,44.51571099]
[1755796503153,0.06,180.78,180.77,45.23571099]
[1755796503734,0.06,180.78,180.77,50.76760234]
[1755796504144,0.06,180.8,180.78,13.87991715]
[1755796504366,0.06,180.8,180.79,65.62641167]
[1755796504665,0.06,180.82,180.81,13.87991715]
[1755796504819,0.06,180.89,180.88,47.42641167]
[1755796505229,0.78,180.89,180.88,26.0]
[1755796505735,0.06,180.89,180.88,26.0]
[1755796506138,0.06,180.89,180.85,13.59559401]
[1755796506139,8.32649452,180.89,180.85,13.59559401]
[1755796506362,8.26649452,180.88,180.83,7.54649452]
[1755796506535,7.54649452,180.85,180.81,39.59559401]
[1755796506729,0.72,180.84,180.81,26.0]
[1755796506930,7.54649452,180.84,180.79,13.59559401]
[1755796507132,7.54649452,180.83,180.78,7.54649452]
[1755796507342,7.54649452,180.83,180.76,65.34208801]
[1755796507563,0.72,180.82,180.76,15.09298852]
[1755796507759,7.54649452,180.79,180.75,0.03]
[1755796508060,44.2,180.86,180.78,26.0]
[1755796508357,7.54649452,180.8,180.78,26.0]
[1755796508858,0.72,180.79,180.78,26.0]
[1755796509262,0.72,180.82,180.77,7.54649452]
[1755796509564,4.38259175,180.85,180.81,7.54649452]
[1755796509860,8.26649452,180.84,180.79,7.54649452]
[1755796510160,0.72,180.83,180.79,7.54649452]
[1755796510361,0.72,180.82,180.79,7.54649452]
[1755796510563,0.72,180.81,180.78,33.54649452]
[1755796510771,0.72,180.81,180.78,26.0]
[1755796511252,0.72,180.81,180.78,33.54649452]
[1755796511446,3.66259175,180.87,180.8,7.54649452]
[1755796511447,0.72,180.86,180.8,7.54649452]
[1755796511754,0.72,180.86,180.83,7.54649452]
[1755796511953,0.72,180.86,180.84,7.54649452]
[1755796512150,0.72,180.85,180.83,7.54649452]
[1755796512471,0.72,180.84,180.82,26.0]
[1755796512653,7.54649452,180.86,180.82,26.0]
[1755796512855,0.72,180.86,180.82,33.54649452]
[1755796513052,7.54649452,180.87,180.82,33.54649452]
[1755796513249,0.72,180.85,180.82,26.0]
[1755796513449,0.72,180.84,180.82,33.54649452]
[1755796513756,0.78,180.89,180.83,8.26649452]
[1755796514074,0.78,180.89,180.85,7.54649452]
[1755796514465,0.72,180.88,180.85,7.54649452]
[1755796515192,8.26649452,180.87,180.84,26.0]
[1755796515373,0.72,180.86,180.8,0.28432314]
[1755796515669,0.72,180.86,180.82,33.54649452]
[1755796516777,0.67,180.85,180.84,26.0]
[1755796517352,7.54649452,180.88,180.83,7.54649452]
[1755796517569,0.67,180.87,180.82,33.54649452]
[1755796517777,8.21649452,180.86,180.82,26.0]
[1755796517963,7.54649452,180.86,180.82,26.0]
[1755796518175,0.67,180.85,180.82,26.0]
[1755796518355,8.21649452,180.85,180.82,26.0]
[1755796518560,7.54649452,180.88,180.83,7.54649452]
[1755796518875,0.67,180.87,180.83,7.54649452]
[1755796519179,7.54649452,180.88,180.83,7.54649452]
[1755796519375,7.54649452,180.88,180.83,8.25649452]
[1755796519579,0.06,180.89,180.85,7.54649452]
[1755796519956,0.06,180.89,180.86,7.54649452]
[1755796520276,0.06,180.89,180.87,7.54649452]
[1755796520454,0.06,180.89,180.86,7.54649452]
[1755796520654,0.73,180.89,180.86,7.54649452]
[1755796520850,0.06,180.89,180.86,7.54649452]
[1755796521053,0.06,180.87,180.86,26.71]
[1755796521271,0.06,180.87,180.86,40.30559401]
[1755796522277,0.06,180.87,180.86,47.85208853]
[1755796523402,0.06,180.87,180.86,53.66555023]
[1755796524060,0.06,180.87,180.86,48.13641167]
[1755796524486,0.06,180.87,180.86,39.87991715]
[1755796524684,0.06,180.87,180.86,47.14208853]
[1755796525072,0.06,180.87,180.86,39.59559401]
[1755796525279,0.06,180.87,180.86,33.54649452]
[1755796526094,0.73,180.87,180.86,26.0]
[1755796526268,0.06,180.87,180.86,26.0]
[1755796526763,0.73,180.87,180.86,26.0]
[1755796526972,0.73,180.87,180.83,7.54649452]
[1755796527274,0.67,180.86,180.83,39.59559401]
[1755796527587,0.67,180.86,180.83,13.59559401]
[1755796527889,0.06,180.87,180.85,7.54649452]
[1755796528392,0.06,180.87,180.86,33.54649452]
[1755796528591,0.73,180.87,180.86,26.0]
[1755796529588,0.06,180.87,180.86,26.0]
[1755796530589,5.36173181,180.87,180.84,26.0]
[1755796530795,5.30173181,180.86,180.84,26.0]
[1755796531099,5.30173181,180.86,180.83,13.59559401]
[1755796531391,5.30173181,180.86,180.83,39.59559401]
[1755796531768,0.67,180.86,180.83,39.59559401]
[1755796531963,0.67,180.85,180.83,39.59559401]
[1755796532168,5.30173181,180.84,180.8,0.03]
[1755796532462,4.63173181,180.83,180.8,0.03]
[1755796532670,5.30173181,180.83,180.8,0.03]
[1755796532871,0.67,180.83,180.8,0.03]
[1755796533091,4.63173181,180.85,180.8,0.03]
[1755796533283,0.67,180.84,180.8,0.03]
[1755796533593,5.30173181,180.84,180.8,0.03]
[1755796534216,0.06,180.87,180.82,18.22732582]
[1755796534389,0.06,180.87,180.82,13.59559401]
[1755796534390,0.67,180.86,180.82,13.59559401]
[1755796534704,0.67,180.86,180.82,18.22732582]
[1755796534913,0.67,180.86,180.82,13.59559401]
[1755796535109,5.30173181,180.85,180.82,26.0]
[1755796535482,0.67,180.85,180.82,26.0]
[1755796536321,0.06,180.87,180.82,26.71]
[1755796536618,5.36173181,180.87,180.82,31.34173181]
[1755796536806,0.06,180.87,180.83,30.63173181]
[1755796536977,0.06,180.87,180.83,5.34173181]
[1755796537181,0.06,180.87,180.83,31.34173181]
[1755796537581,0.06,180.87,180.84,5.34173181]
[1755796538003,0.06,180.86,180.85,26.0]
[1755796538809,0.06,180.86,180.85,44.93732582]
[1755796538984,0.06,180.86,180.85,45.22164896]
[1755796539300,0.06,180.86,180.85,50.75109325]
[1755796540314,0.06,180.86,180.85,53.66144544]
[1755796540488,0.06,180.86,180.85,46.11936144]
[1755796540689,0.06,180.86,180.85,53.66144544]
[1755796541309,0.06,180.87,180.86,13.87991715]
[1755796541485,0.06,180.91,180.9,0.28432314]
[1755796541684,0.67,181.01,180.94,39.87991715]
[1755796541885,8.212084,181.01,180.94,39.87991715]
[1755796542085,0.67,181.0,180.96,7.542084]
[1755796542508,0.67,181.0,180.94,84.03991715]
[1755796542683,0.67,181.0,180.96,7.542084]
[1755796543088,7.542084,180.99,180.94,47.13767801]
[1755796543311,0.67,180.98,180.94,47.13767801]
[1755796543615,0.67,180.97,180.94,33.542084]
[1755796543786,0.67,180.96,180.94,33.542084]
[1755796543987,0.67,180.98,180.94,33.542084]
[1755796544713,8.212084,181.0,180.96,7.542084]
[1755796544898,8.212084,181.0,180.94,26.71]
[1755796544899,0.67,180.99,180.95,7.542084]
[1755796545215,0.67,180.98,180.96,7.542084]
[1755796545512,0.67,180.99,180.96,7.542084]
[1755796545896,0.67,180.98,180.94,26.0]
[1755796546084,0.67,180.97,180.94,26.0]
[1755796546483,0.67,180.97,180.94,33.542084]
[1755796546997,0.68,180.96,180.94,26.0]
[1755796547196,3.65303564,181.05,180.95,26.0]
[1755796547401,0.28432314,181.05,180.95,26.0]
[1755796547594,7.542084,180.99,180.95,33.542084]
[1755796547803,8.222084,180.99,180.95,26.0]
[1755796548011,8.222084,180.99,180.95,33.542084]
[1755796548294,8.222084,180.99,180.95,26.0]
[1755796548498,0.68,180.98,180.95,26.0]
[1755796548994,0.68,180.97,180.95,26.0]
[1755796549318,3.93735878,181.05,180.95,26.0]
[1755796549621,7.542084,180.99,180.95,26.0]
[1755796549813,8.222084,180.99,180.95,26.0]
[1755796550201,0.68,180.99,180.95,33.542084]
[1755796550404,7.542084,181.0,180.95,33.542084]
[1755796550631,0.68,180.99,180.95,33.542084]
[1755796551319,7.542084,181.0,180.95,33.542084]
[1755796551525,0.68,181.04,180.98,7.542084]
[1755796551728,7.542084,181.03,180.98,7.542084]
[1755796552024,7.542084,181.04,180.99,7.542084]
[1755796552330,8.222084,181.04,180.99,8.242084]
[1755796552517,0.68,181.03,180.99,7.542084]
[1755796553726,44.16,181.06,180.99,7.542084]
[1755796553910,0.68,181.05,180.99,7.542084]
[1755796554109,7.542084,181.04,180.99,7.542084]
[1755796554325,0.68,181.05,181.0,7.542084]
[1755796554326,8.222084,181.05,181.0,7.542084]
[1755796554528,8.222084,181.04,181.0,7.542084]
[1755796554903,44.16,181.06,181.0,7.542084]
[1755796555253,44.16,181.06,180.97,16.608077]
[1755796555254,7.542084,181.01,180.97,16.608077]
[1755796555428,7.542084,180.98,180.96,26.0]
[1755796555626,0.68,180.98,180.96,26.0]
[1755796556038,7.542084,180.99,180.96,26.0]
[1755796556426,8.222084,180.99,180.96,26.0]
[1755796557328,7.542084,180.99,180.96,26.0]
[1755796557533,3.6361593,181.05,180.96,34.242084]
[1755796557534,7.542084,181.0,180.96,34.242084]
[1755796557719,0.68,181.02,180.96,34.242084]
[1755796557920,8.222084,181.02,180.96,26.7]
[1755796558149,7.542084,181.01,180.96,34.242084]
[1755796558451,8.222084,181.02,180.97,7.542084]
[1755796558638,0.68,181.02,180.97,7.542084]
[1755796558823,7.542084,181.02,180.97,7.542084]
[1755796559019,8.222084,181.01,180.96,33.542084]
[1755796559224,7.542084,180.99,180.96,26.0]
[1755796559531,44.14,181.04,180.96,26.0]
[1755796559532,0.68,180.98,180.96,26.0]
[1755796559723,7.542084,180.99,180.96,26.0]
[1755796560443,7.542084,181.0,180.96,26.0]
[1755796560651,7.542084,180.99,180.96,26.0]
[1755796560825,7.542084,180.97,180.93,13.59559401]
[1755796561027,7.542084,180.96,180.93,26.0]
[1755796561230,8.222084,180.95,180.9,21.13767801]
[1755796561523,8.222084,180.95,180.91,33.542084]
[1755796561723,8.222084,180.97,180.92,7.542084]
[1755796562139,26.0,181.03,180.92,7.542084]
[1755796562340,8.222084,180.99,180.94,7.542084]
[1755796562931,8.222084,180.98,180.93,33.542084]
[1755796563134,8.222084,180.98,180.93,34.242084]
[1755796563633,0.68,180.98,180.93,34.242084]
[1755796563849,0.68,180.98,180.93,8.242084]
[1755796564358,8.222084,180.98,180.93,8.242084]
[1755796564561,7.542084,180.99,180.94,0.7]
[1755796564724,8.222084,180.99,180.93,13.59559401]
[1755796564924,0.68,181.02,180.97,7.542084]
[1755796565230,0.68,181.02,180.97,8.242084]
[1755796565435,8.222084,181.02,180.97,8.242084]
[1755796565735,8.222084,181.02,180.97,7.542084]
[1755796566042,44.14,181.04,180.94,31.52665506]
[1755796566043,0.68,181.04,181.0,7.542084]
[1755796566255,8.222084,181.03,180.98,26.0]
[1755796566434,7.542084,181.01,180.96,7.542084]
[1755796566637,7.542084,180.99,180.96,26.0]
[1755796566849,8.222084,180.98,180.93,33.542084]
[1755796567029,7.542084,180.96,180.93,26.0]
[1755796567235,0.68,180.96,180.93,26.0]
[1755796567431,3.92282709,181.04,180.94,8.242084]
[1755796567641,7.542084,180.99,180.94,7.542084]
[1755796567840,8.222084,180.98,180.93,33.542084]
[1755796568051,8.222084,180.98,180.93,26.0]
[1755796568253,8.222084,180.98,180.93,33.542084]
[1755796568453,7.542084,180.95,180.89,13.62559401]
[1755796568628,7.542084,180.93,180.89,0.03]
[1755796568832,7.542084,180.91,180.89,0.03]
[1755796569034,8.222084,180.91,180.89,26.03]
[1755796569233,7.542084,180.91,180.89,0.03]
[1755796569435,7.542084,180.92,180.89,0.03]
[1755796569758,44.14,180.97,180.91,7.542084]
[1755796569928,44.14,180.97,180.93,7.542084]
[1755796570131,8.222084,180.96,180.91,7.542084]
[1755796570345,8.222084,180.95,180.9,21.13767801]
[1755796570760,44.14,180.97,180.9,13.59559401]
[1755796570964,44.14,180.97,180.92,7.542084]
[1755796571290,44.82,180.97,180.92,7.542084]
[1755796571450,44.14,180.97,180.94,7.542084]
[1755796571651,44.14,180.97,180.95,7.542084]
[1755796571852,8.222084,180.96,180.92,26.0]
[1755796572165,0.68,180.95,180.92,26.0]
[1755796572365,44.14,180.97,180.93,7.542084]
[1755796572564,44.14,180.97,180.92,26.7]
[1755796572757,0.68,180.96,180.92,33.542084]
[1755796572953,51.682084,180.97,180.92,33.542084]
[1755796573267,44.14,180.97,180.93,7.542084]
[1755796573573,0.68,180.99,180.94,8.242084]
[1755796574080,8.222084,180.99,180.94,7.542084]
[1755796574291,0.68,180.98,180.94,7.542084]
[1755796574787,7.542084,180.99,180.94,7.542084]
[1755796574953,7.542084,180.99,180.94,8.242084]
[1755796575161,8.222084,180.99,180.94,7.542084]
[1755796575353,8.222084,180.98,180.93,21.13767801]
[1755796575553,7.542084,180.98,180.93,7.542084]
[1755796575864,0.68,180.97,180.93,7.542084]
[1755796576464,7.542084,180.98,180.92,26.0]
[1755796576774,7.542084,180.98,180.93,8.242084]
[1755796576979,8.212084,180.98,180.93,7.542084]
[1755796577158,0.67,180.97,180.93,7.542084]
[1755796577984,0.67,180.97,180.92,26.0]
[1755796577985,8.212084,180.96,180.92,26.0]
[1755796578276,7.542084,180.94,180.89,7.572084]
[1755796578470,7.542084,180.94,180.91,26.0]
[1755796578669,0.67,180.95,180.91,26.0]
[1755796578862,8.212084,180.95,180.91,26.0]
[1755796579756,8.212084,180.95,180.89,0.72]
[1755796579757,7.542084,180.92,180.89,0.03]
[1755796579983,7.542084,180.9,180.87,0.03]
[1755796580165,33.542084,180.88,180.86,6.042084]
[1755796580376,33.542084,180.88,180.8,0.03]
[1755796580377,41.084168,180.87,180.8,0.03]
[1755796580591,7.542084,180.81,180.8,0.03]
[1755796581517,26.0,180.79,180.76,0.03]
[1755796581701,7.542084,180.77,180.76,0.03]
[1755796581898,7.82640714,180.77,180.76,0.03]
[1755796582383,3.64397555,180.77,180.76,0.03]
[1755796582577,51.682084,180.77,180.76,0.03]
[1755796582795,51.96640714,180.77,180.76,0.03]
[1755796584196,51.682084,180.77,180.76,0.03]
[1755796584774,51.702084,180.77,180.76,0.03]
[1755796585177,26.0,180.81,180.76,0.03]
[1755796585393,44.16,180.8,180.76,0.03]
[1755796585706,7.542084,180.79,180.77,0.69]
[1755796586001,7.542084,180.78,180.77,0.69]
[1755796586208,51.702084,180.78,180.76,0.03]
[1755796586411,7.542084,180.77,180.76,0.03]
[1755796587402,26.0,180.82,180.76,0.72]
[1755796587615,13.87991715,180.83,180.76,0.72]
[1755796587616,7.542084,180.77,180.76,0.72]
[1755796587820,7.542084,180.77,180.76,0.03]
[1755796588412,44.16,180.77,180.76,0.03]
[1755796588580,51.702084,180.77,180.76,0.03]
[1755796590407,7.542084,180.77,180.76,0.03]
[1755796590615,51.702084,180.77,180.76,0.03]
[1755796590983,2.218463,180.79,180.76,0.03]
[1755796591208,7.542084,180.77,180.76,0.72]
[1755796591408,2.217971,180.82,180.77,0.69]
[1755796591703,2.89207783,180.87,180.76,0.03]
[1755796591704,7.542084,180.79,180.76,0.03]
[1755796591881,7.572084,180.86,180.78,0.69]
[1755796592083,7.542084,180.83,180.78,0.69]
[1755796592282,7.542084,180.82,180.79,0.69]
[1755796592505,51.722084,180.81,180.79,0.69]
[1755796592913,51.722084,180.81,180.76,0.03]
[1755796592914,7.542084,180.8,180.76,0.03]
[1755796593093,7.542084,180.78,180.76,0.03]
[1755796593885,51.722084,180.81,180.77,0.69]
[1755796594092,7.542084,180.87,180.78,0.69]
[1755796594393,44.18,180.86,180.78,8.232084]
[1755796594701,7.542084,180.83,180.79,0.69]
[1755796594904,44.18,180.82,180.79,0.69]
[1755796595107,7.542084,180.84,180.8,0.69]
[1755796595418,44.18,180.83,180.8,0.69]
[1755796595719,51.722084,180.83,180.81,0.69]
[1755796595890,51.722084,180.83,180.76,39.62559401]
[1755796595891,7.542084,180.82,180.77,7.542084]
[1755796596092,7.542084,180.81,180.78,0.69]
[1755796596320,7.542084,180.81,180.77,26.0]
[1755796596321,7.542084,180.82,180.79,0.69]
[1755796597200,51.722084,180.83,180.8,0.69]
[1755796597395,44.18,180.83,180.81,0.69]
[1755796597629,44.18,180.85,180.82,8.232084]
[1755796597797,44.18,180.85,180.83,0.69]
[1755796597998,44.18,180.85,180.84,0.69]
[1755796599113,7.542084,180.87,180.84,0.69]
[1755796599311,44.18,180.86,180.82,7.542084]
[1755796599520,44.18,180.86,180.85,0.69]
[1755796599914,51.722084,180.86,180.82,0.69]
[1755796600100,51.722084,180.86,180.83,0.69]
[1755796600298,44.18,180.86,180.84,0.69]
[1755796600504,44.24,180.86,180.84,0.69]
[1755796600833,7.542084,180.85,180.78,26.0]
[1755796600998,7.542084,180.82,180.8,26.0]
[1755796601204,44.24,180.86,180.81,0.69]
[1755796601428,7.542084,180.85,180.82,0.69]
[1755796601634,51.722084,180.85,180.82,0.69]
[1755796601835,7.542084,180.84,180.82,0.69]
[1755796602198,44.18,180.85,180.82,0.69]
[1755796602403,51.722084,180.85,180.83,0.69]
[1755796603300,51.722084,180.85,180.8,7.542084]
[1755796603517,51.722084,180.85,180.81,0.69]
[1755796603716,51.722084,180.85,180.8,7.542084]
[1755796603916,51.722084,180.85,180.82,0.69]
[1755796604316,51.722084,180.85,180.83,0.69]
[1755796604517,44.22,180.86,180.84,0.69]
[1755796604924,51.762084,180.86,180.84,0.69]
[1755796605105,51.762084,180.86,180.85,0.69]
[1755796605411,51.762084,180.86,180.79,26.0]
[1755796605616,7.542084,180.84,180.82,0.69]
[1755796605818,44.22,180.86,180.83,0.69]
[1755796606024,7.542084,180.85,180.83,0.69]
[1755796606622,7.542084,180.85,180.81,0.69]
[1755796606932,51.762084,180.86,180.82,0.69]
[1755796607132,44.22,180.86,180.83,0.69]
[1755796607331,44.22,180.86,180.84,0.69]
[1755796607523,44.22,180.86,180.85,0.69]
[1755796608331,44.22,180.86,180.82,26.0]
[1755796608332,44.22,180.86,180.82,33.542084]
[1755796608529,44.22,180.86,180.84,0.69]
[1755796608832,44.22,180.86,180.85,0.69]
[1755796609024,44.22,180.86,180.82,33.542084]
[1755796609226,51.762084,180.86,180.82,26.0]
[1755796609427,51.762084,180.86,180.83,0.69]
[1755796609624,7.542084,180.84,180.81,26.0]
[1755796609933,7.542084,180.83,180.81,26.69]
[1755796610127,7.542084,180.85,180.82,0.69]
[1755796611134,7.542084,180.85,180.81,26.0]
[1755796611333,44.22,180.86,180.83,0.69]
[1755796611558,44.22,180.86,180.84,0.69]
[1755796611735,51.762084,180.86,180.84,0.69]
[1755796611919,51.762084,180.86,180.81,34.232084]
[1755796612117,51.762084,180.86,180.82,0.69]
[1755796612333,51.762084,180.86,180.83,0.69]
[1755796613258,44.22,180.86,180.84,0.69]
[1755796613752,44.22,180.86,180.85,0.69]
[1755796614624,44.22,180.86,180.83,0.69]
[1755796614826,51.762084,180.86,180.84,0.69]
[1755796615036,51.762084,180.86,180.82,26.0]
[1755796615428,51.762084,180.86,180.82,26.69]
[1755796615614,44.22,180.86,180.83,0.69]
[1755796616120,44.22,180.86,180.82,33.542084]
[1755796616323,44.22,180.86,180.84,0.69]
[1755796616522,44.22,180.86,180.85,0.69]
[1755796616920,0.06,180.86,180.85,0.69]
[1755796617144,0.06,180.86,180.83,0.69]
[1755796617316,0.06,180.86,180.84,0.69]
[1755796619321,0.06,180.86,180.85,0.69]
[1755796620116,0.06,180.86,180.85,26.69]
[1755796620318,0.06,180.9,180.89,26.0]
[1755796620735,7.602084,180.9,180.86,26.69]
[1755796620923,7.602084,180.9,180.86,26.0]
[1755796620924,7.542084,180.87,180.86,26.0]
[1755796621458,0.18,180.9,180.86,26.0]
[1755796621459,7.542084,180.88,180.86,26.0]
[1755796622161,0.06,180.88,180.86,26.0]
[1755796622325,0.06,180.88,180.87,0.69]
[1755796622729,7.602084,180.88,180.86,26.0]
[1755796623481,0.06,180.88,180.87,0.69]
[1755796623920,0.06,180.88,180.87,8.232084]
[1755796624937,0.06,180.88,180.87,26.69]
[1755796625131,0.06,180.88,180.87,34.232084]
[1755796625332,0.06,180.88,180.84,0.69]
[1755796625657,7.542084,180.87,180.82,8.232084]
[1755796625829,7.542084,180.87,180.83,26.69]
[1755796626030,7.542084,180.87,180.84,26.0]
[1755796626632,7.542084,180.86,180.84,26.0]
[1755796627454,7.542084,180.85,180.82,26.0]
[1755796627657,7.542084,180.84,180.82,26.0]
[1755796627962,0.18,180.88,180.8,0.69]
[1755796628258,7.542084,180.84,180.8,26.69]
[1755796628559,7.542084,180.84,180.81,0.69]
[1755796629064,0.18,180.88,180.81,0.69]
[1755796629269,7.542084,180.84,180.81,0.69]
[1755796629957,7.542084,180.84,180.82,0.69]
[1755796630169,0.06,180.88,180.83,0.69]
[1755796630402,0.06,180.88,180.84,7.542084]
[1755796630575,0.06,180.88,180.85,8.232084]
[1755796630776,0.06,180.88,180.86,0.69]
[1755796631198,0.06,180.88,180.84,26.69]
[1755796631404,0.06,180.88,180.84,34.232084]
[1755796631784,0.06,180.88,180.85,0.69]
[1755796631992,0.06,180.88,180.86,0.69]
[1755796632799,0.06,180.88,180.87,0.69]
[1755796633197,0.06,180.9,180.87,40.28559401]
[1755796633397,0.06,180.9,180.88,0.69]
[1755796633593,0.06,180.9,180.88,8.232084]
[1755796633791,0.06,180.9,180.88,7.542084]
[1755796633990,0.06,180.9,180.89,0.69]
[1755796634405,0.06,180.9,180.89,8.232084]
[1755796634601,0.06,180.9,180.89,0.69]
[1755796634900,0.06,180.9,180.89,8.232084]
[1755796635102,0.06,180.9,180.89,0.69]
[1755796635306,0.06,180.9,180.89,8.232084]
[1755796635936,0.06,180.9,180.89,0.69]
[1755796636217,0.06,180.9,180.89,8.232084]
[1755796637840,0.06,180.9,180.89,0.69]
[1755796639106,7.602084,180.9,180.85,8.262084]
[1755796639310,7.602084,180.9,180.85,0.72]
[1755796639311,0.06,180.9,180.85,0.72]
[1755796639509,0.06,180.9,180.84,7.572084]
[1755796639510,7.542084,180.89,180.84,7.572084]
[1755796639704,7.542084,180.87,180.84,0.03]
[1755796639908,7.542084,180.86,180.84,0.03]
[1755796640118,7.542084,180.85,180.84,0.03]